bitfinex-derivatives/quotes_SOLF0:USTF0_20240930
["timestamp","ask_amount","ask_price","bid_price","bid_amount"]
[1727655027814,3.1457,158.91,158.87,3.27142]
[1727655028415,3.1458,158.91,158.87,3.27142]
[1727655029520,6.29528979,158.93,158.89,3.1458]
[1727655029720,15.39331434,158.97,158.89,3.1458]
[1727655029916,3.1455,158.92,158.89,3.1458]
[1727655030121,3.1455,158.92,158.88,3.1461]
[1727655030811,3.19090693,158.93,158.87,0.12502]
[1727655031015,3.1457,158.91,158.88,3.1462]
[1727655031822,3.1455,158.92,158.88,3.1462]
[1727655032016,3.1455,158.92,158.89,3.146]
[1727655032222,2.6432,158.97,158.87,0.12502]
[1727655032418,3.1452,158.94,158.87,0.12502]
[1727655033031,3.1452,158.93,158.9,3.1457]
[1727655033715,2.6432,158.97,158.87,0.12502]
[1727655033918,2.6432,158.97,158.89,3.146]
[1727655033919,3.1454,158.92,158.89,3.146]
[1727655034325,3.1457,158.91,158.88,3.1461]
[1727655034529,23.12545488,158.95,158.87,0.12502]
[1727655034721,12.8113317,158.94,158.87,0.12502]
[1727655034927,2.6432,158.97,158.88,3.1462]
[1727655035522,3.1456,158.92,158.88,3.1462]
[1727655036927,3.1462,158.88,158.87,0.12502]
[1727655038827,23.15634689,158.89,158.81,0.12502]
[1727655039034,3.147,158.84,158.81,0.12502]
[1727655039531,1.3329,158.89,158.81,0.12502]
[1727655039838,3.1474,158.82,158.81,0.12502]
[1727655041321,3.19326319,158.83,158.75,0.12502]
[1727655041531,12.8251328,158.83,158.75,0.12502]
[1727655041736,3.1617056,158.84,158.75,0.12502]
[1727655041933,3.1477,158.81,158.77,3.1483]
[1727655043733,1.3393,158.86,158.76,3.1485]
[1727655043734,3.1478,158.8,158.76,3.1485]
[1727655044228,3.1481,158.79,158.75,3.27372]
[1727655044834,1.3189,158.83,158.75,3.27372]
[1727655044835,3.1482,158.78,158.75,3.27372]
[1727655045136,3.07394048,158.81,158.75,0.12502]
[1727655045335,1.3189,158.82,158.75,0.12502]
[1727655045531,3.1479,158.8,158.75,0.12502]
[1727655045839,3.12843291,158.81,158.75,0.12502]
[1727655046237,3.1481,158.79,158.75,3.27372]
[1727655046441,3.12843291,158.81,158.75,0.12502]
[1727655046739,3.1483,158.78,158.75,0.12502]
[1727655047741,3.1483,158.78,158.75,3.27372]
[1727655049734,3.12843291,158.81,158.75,0.12502]
[1727655049935,1.3189,158.83,158.75,0.12502]
[1727655050138,68.02,158.85,158.75,0.12502]
[1727655050443,3.1471,158.84,158.81,3.1476]
[1727655051240,3.1471,158.84,158.75,0.12502]
[1727655051438,3.1471,158.84,158.8,3.1477]
[1727655052444,3.1472,158.83,158.8,3.1477]
[1727655054047,3.1472,158.83,158.79,3.1479]
[1727655054542,1.3267,158.89,158.75,0.12502]
[1727655054743,3.1471,158.84,158.75,0.12502]
[1727655056149,3.1475,158.82,158.75,0.12502]
[1727655056843,3.09189463,158.85,158.75,0.12502]
[1727655057146,20.2667,158.89,158.75,0.12502]
[1727655057147,19.06502,158.87,158.75,0.12502]
[1727655057541,3.1481,158.79,158.75,0.12502]
[1727655057742,3.0762665,158.82,158.75,0.12502]
[1727655057939,19.06502,158.87,158.75,0.12502]
[1727655058249,18.94,158.85,158.75,0.12502]
[1727655058433,22.05910179,158.85,158.75,0.12502]
[1727655059040,3.1483,158.78,158.75,0.12502]
[1727655059441,22.05910179,158.85,158.75,0.12502]
[1727655059641,18.94,158.85,158.75,0.12502]
[1727655060245,3.1484,158.77,158.75,0.12502]
[1727655060448,18.94,158.84,158.75,0.12502]
[1727655060851,1.3363,158.83,158.75,0.12502]
[1727655061251,1.2491,158.82,158.75,0.12502]
[1727655062250,3.1486,158.76,158.75,0.12502]
[1727655062453,1.2491,158.82,158.7,3.1497]
[1727655062454,0.12502,158.81,158.7,3.1497]
[1727655062655,3.1491,158.74,158.7,3.1497]
[1727655062854,3.210306,158.76,158.69,0.12502]
[1727655063042,0.12502,158.81,158.69,0.12502]
[1727655063043,3.1491,158.74,158.69,0.12502]
[1727655063346,1.3733,158.75,158.69,3.27482]
[1727655063553,1.3733,158.75,158.69,0.12502]
[1727655064841,2.6223,158.75,158.69,0.12502]
[1727655065046,3.1495,158.72,158.69,0.12502]
[1727655065258,2.6223,158.75,158.69,0.12502]
[1727655065548,1.3733,158.75,158.69,0.12502]
[1727655066663,3.1495,158.72,158.69,0.12502]
[1727655067749,1.3616,158.79,158.69,0.12502]
[1727655068657,3.1489,158.75,158.71,3.1494]
[1727655069358,3.1489,158.75,158.69,0.12502]
[1727655069556,1.3616,158.79,158.69,0.12502]
[1727655070055,3.1487,158.76,158.72,3.1494]
[1727655072162,70.584,158.8,158.69,0.12502]
[1727655072461,70.584,158.8,158.74,3.1488]
[1727655073156,3.1485,158.77,158.74,3.1488]
[1727655074063,3.1485,158.77,158.73,3.1491]
[1727655074251,3.1485,158.77,158.69,0.12502]
[1727655074252,3.1492,158.73,158.69,0.12502]
[1727655074957,3.1492,158.73,158.69,3.27482]
[1727655075163,3.1492,158.73,158.69,0.12502]
[1727655075754,3.1484,158.77,158.72,3.1493]
[1727655076048,70.584,158.8,158.69,0.12502]
[1727655076759,89.484,158.8,158.69,0.12502]
[1727655077759,3.1495,158.72,158.69,0.12502]
[1727655077959,3.10870019,158.73,158.69,0.12502]
[1727655078262,114.7196,158.8,158.69,0.12502]
[1727655078761,3.1498,158.7,158.69,0.12502]
[1727655083163,1.2822,158.79,158.69,0.12502]
[1727655083365,2.5872,158.78,158.69,0.12502]
[1727655083762,3.1493,158.73,158.7,3.1498]
[1727655084365,3.149,158.74,158.7,3.1498]
[1727655085065,3.149,158.74,158.69,0.12502]
[1727655085267,3.1492,158.73,158.69,0.12502]
[1727655086261,3.1492,158.73,158.7,3.1497]
[1727655089273,3.1492,158.73,158.69,0.12502]
[1727655089468,3.1492,158.73,158.69,3.27492]
[1727655090267,3.1492,158.73,158.7,3.1497]
[1727655090868,3.1492,158.73,158.69,0.12502]
[1727655092270,3.1492,158.73,158.7,3.1497]
[1727655092471,22.07957708,158.77,158.69,0.12502]
[1727655092672,18.9,158.77,158.69,0.12502]
[1727655093468,22.08095258,158.77,158.69,0.12502]
[1727655094372,3.18095258,158.77,158.69,0.12502]
[1727655094576,2.5872,158.78,158.69,0.12502]
[1727655094776,3.1493,158.73,158.69,0.12502]
[1727655094979,3.1493,158.73,158.69,3.27482]
[1727655096780,3.14659627,158.76,158.69,3.27482]
[1727655097079,2.5872,158.78,158.69,0.12502]
[1727655097684,2.5872,158.78,158.7,3.1496]
[1727655097685,3.1493,158.73,158.7,3.1496]
[1727655097881,3.18493237,158.76,158.7,3.1496]
[1727655098078,3.1491,158.74,158.7,3.1496]
[1727655098770,3.1493,158.73,158.7,3.1496]
[1727655102886,3.16794527,158.76,158.69,0.12502]
[1727655102887,3.1497,158.71,158.69,0.12502]
[1727655103079,2.5872,158.78,158.69,0.12502]
[1727655103689,0.12502,158.81,158.69,0.12502]
[1727655104186,0.12502,158.81,158.8,3.1478]
[1727655108891,0.12502,158.87,158.78,4.008]
[1727655109090,0.12502,158.87,158.86,3.1466]
[1727655110799,0.12502,158.87,158.78,4.008]
[1727655111387,3.27152,158.87,158.83,3.1472]
[1727655111997,3.27152,158.87,158.78,4.008]
[1727655112190,0.12502,158.87,158.85,3.1467]
[1727655112798,0.12502,158.87,158.78,4.008]
[1727655113393,3.27152,158.87,158.82,3.1472]
[1727655113687,3.27152,158.87,158.78,4.008]
[1727655114396,0.12502,158.87,158.78,4.008]
[1727655115493,0.12502,158.87,158.85,3.1466]
[1727655116589,0.12502,158.87,158.86,3.1466]
[1727655117400,0.12502,158.87,158.84,3.1469]
[1727655118198,0.12502,158.87,158.86,3.1466]
[1727655119902,0.12502,158.93,158.91,3.1455]
[1727655120108,0.12502,158.93,158.85,3.14912758]
[1727655120410,0.12502,158.93,158.86,2.4891]
[1727655121605,0.12502,158.93,158.92,3.1454]
[1727655121802,0.12502,158.99,158.87,0.12502]
[1727655122195,0.12502,158.99,158.95,3.1447]
[1727655122196,3.26902,158.99,158.95,3.1447]
[1727655123106,0.12502,158.99,158.98,3.1442]
[1727655123700,0.12502,159.05,159.02,3.1433]
[1727655124005,0.12502,159.05,158.95,3.15729627]
[1727655124203,0.12502,159.05,159.03,3.1431]
[1727655124403,0.12502,159.05,158.95,3.11701982]
[1727655124612,0.12502,159.05,158.93,0.12502]
[1727655124909,0.12502,159.05,159.04,3.143]
[1727655126406,0.12502,159.05,159.02,3.1433]
[1727655128216,0.12502,159.05,159.04,3.143]
[1727655129405,0.12502,159.11,158.99,0.12502]
[1727655130104,0.12502,159.11,159.06,3.1426]
[1727655130801,0.12502,159.11,158.99,0.12502]
[1727655130999,3.1421,159.09,158.99,0.12502]
[1727655131212,0.12502,159.11,158.99,0.12502]
[1727655131605,3.26682,159.11,159.06,3.1426]
[1727655132005,3.26682,159.11,158.99,3.21253226]
[1727655132312,0.12502,159.11,158.99,3.21253226]
[1727655132906,3.26672,159.11,159.06,3.1425]
[1727655133102,3.26672,159.11,158.99,3.21253226]
[1727655133103,0.12502,159.11,158.99,0.12502]
[1727655133309,0.12502,159.11,158.99,3.27387755]
[1727655133503,0.12502,159.11,159.1,3.1418]
[1727655133818,0.12502,159.11,159.04,3.2045033]
[1727655134017,0.12502,159.11,159.1,3.1418]
[1727655138017,0.12502,159.11,159.06,1.3458]
[1727655138410,0.12502,159.11,159.01,1.3065]
[1727655138615,0.12502,159.11,159.02,3.22024364]
[1727655138811,0.12502,159.11,159.01,2.6034]
[1727655139315,0.12502,159.11,159.01,5.70702965]
[1727655141519,3.26672,159.11,159.06,3.1425]
[1727655141819,3.26672,159.11,159.01,5.70702965]
[1727655141820,0.12502,159.11,159.01,2.6034]
[1727655142014,0.12502,159.11,159.06,3.1425]
[1727655142211,3.142,159.1,159.06,3.1425]
[1727655142721,0.12502,159.11,159.01,1.3065]
[1727655143122,0.12502,159.11,159.05,3.1428]
[1727655143422,3.1419,159.1,159.01,1.3065]
[1727655144126,3.1419,159.1,159.06,3.1425]
[1727655144315,0.12502,159.11,159.01,1.3065]
[1727655145410,0.12502,159.11,159.09,3.142]
[1727655145720,0.12502,159.11,159.01,1.3065]
[1727655147430,3.1423,159.08,159.04,3.1428]
[1727655147724,0.12502,159.11,159.03,12.07]
[1727655147915,3.1424,159.08,159.03,15.2131]
[1727655148722,0.12502,159.11,159.05,3.1428]
[1727655148723,3.1421,159.09,159.05,3.1428]
[1727655148922,0.12502,159.11,159.03,12.07]
[1727655149315,12.19502,159.11,159.03,3.1432]
[1727655149823,3.1425,159.07,159.03,3.1432]
[1727655150320,12.19502,159.11,159.03,3.1432]
[1727655150812,12.19502,159.11,159.01,12.07]
[1727655151015,3.1426,159.07,159.01,12.07]
[1727655151219,12.19502,159.11,159.01,12.07]
[1727655151613,3.1423,159.08,159.04,3.1429]
[1727655152014,0.12502,159.11,159.03,12.07]
[1727655153523,3.26672,159.11,159.07,3.1423]
[1727655155121,0.12502,159.11,159.08,3.1421]
[1727655155621,0.12502,159.11,159.05,12.07]
[1727655155820,0.12502,159.11,159.03,12.07]
[1727655156320,3.1422,159.09,159.05,3.1427]
[1727655156526,3.1422,159.09,159.03,12.07]
[1727655156728,0.12502,159.11,159.05,12.07]
[1727655157030,3.26672,159.11,159.07,3.1423]
[1727655157434,3.26672,159.11,159.05,12.07]
[1727655157928,0.12502,159.11,159.05,12.07]
[1727655158236,3.142,159.09,159.06,3.1426]
[1727655158423,3.142,159.09,159.05,12.07]
[1727655158625,3.142,159.09,159.05,15.2128]
[1727655159123,3.142,159.09,159.06,3.1426]
[1727655159323,0.12502,159.11,159.05,12.07]
[1727655159627,3.26682,159.11,159.07,3.1423]
[1727655160429,0.12502,159.11,159.05,12.07]
[1727655160636,0.12502,159.11,159.03,12.07]
[1727655161527,3.1419,159.1,159.06,3.1425]
[1727655161930,3.1423,159.08,159.04,3.1429]
[1727655162240,12.07,159.09,159.0,1.2636]
[1727655162539,12.07,159.09,159.02,3.1433]
[1727655162540,2.6374,159.08,159.02,3.1433]
[1727655162729,2.6374,159.08,159.0,1.2636]
[1727655163033,2.6374,159.08,159.03,3.1432]
[1727655163234,2.6374,159.08,159.0,13.3336]
[1727655163536,3.1427,159.06,159.02,3.1434]
[1727655164042,3.1429,159.05,159.02,3.1434]
[1727655164234,12.07,159.06,158.96,12.07]
[1727655164736,3.1433,159.03,158.96,12.07]
[1727655165940,3.143,159.04,159.0,3.1438]
[1727655166126,1.2888,159.07,158.98,12.07]
[1727655166328,3.1434,159.03,158.99,3.26902]
[1727655167944,1.2678,159.08,158.99,0.12502]
[1727655168739,1.2678,159.08,159.0,12.07]
[1727655169735,3.1426,159.07,159.03,3.1431]
[1727655170135,1.2928,159.1,159.03,12.07]
[1727655170438,13.3628,159.1,158.99,12.19502]
[1727655170627,12.07,159.07,158.99,0.12502]
[1727655170827,3.1432,159.04,159.0,3.1437]
[1727655171136,12.07,159.07,159.0,3.1437]
[1727655171342,3.1431,159.04,159.01,3.1436]
[1727655174646,1.2656,159.06,158.99,0.12502]
[1727655174942,1.2656,159.06,158.99,3.26902]
[1727655175341,12.07,159.05,158.99,3.26902]
[1727655175747,3.1438,159.0,158.99,0.12502]
[1727655176637,3.1437,159.01,158.99,0.12502]
[1727655176838,3.1566507,159.03,158.99,0.12502]
[1727655177045,1.2656,159.06,158.99,0.12502]
[1727655177247,3.1432,159.04,159.01,3.1436]
[1727655177447,1.2656,159.06,158.99,0.12502]
[1727655177648,12.07,159.05,158.99,0.12502]
[1727655177848,3.1435,159.02,158.99,0.12502]
[1727655178158,12.07,159.03,158.99,0.12502]
[1727655178335,3.1438,159.01,158.99,0.12502]
[1727655178540,12.07,159.03,158.99,0.12502]
[1727655178734,15.23542518,159.03,158.99,0.12502]
[1727655178945,3.1438,159.0,158.99,0.12502]
[1727655179339,15.23542518,159.03,158.9,15.8725]
[1727655179340,12.07,159.01,158.9,15.8725]
[1727655179538,3.1446,158.97,158.9,15.8725]
[1727655179747,12.07,159.01,158.9,15.8725]
[1727655179944,1.3437,159.0,158.9,15.8725]
[1727655180146,3.1447,158.96,158.92,3.1453]
[1727655180650,1.3437,159.0,158.9,15.8725]
[1727655180846,3.1445,158.97,158.93,3.27012]
[1727655181046,1.3437,159.0,158.93,3.27012]
[1727655181242,1.3437,159.0,158.93,0.12502]
[1727655181437,3.1448,158.95,158.93,0.12502]
[1727655181637,12.07,158.98,158.93,0.12502]
[1727655181843,3.1442,158.98,158.93,3.27022]
[1727655182045,13.4137,159.0,158.93,0.12502]
[1727655182742,1.3632,159.02,158.95,12.07]
[1727655183342,3.1436,159.01,158.97,3.1444]
[1727655183541,1.3632,159.02,158.95,12.07]
[1727655184647,3.1436,159.01,158.97,3.1443]
[1727655185747,1.3632,159.02,158.97,3.1443]
[1727655185947,3.1439,159.0,158.97,3.1443]
[1727655188139,13.4332,159.02,158.93,12.19502]
[1727655188345,12.07,159.0,158.93,0.12502]
[1727655188646,12.07,158.98,158.93,0.12502]
[1727655189041,1.3392,158.97,158.93,0.12502]
[1727655189656,3.1449,158.95,158.93,0.12502]
[1727655189847,1.3392,158.97,158.93,0.12502]
[1727655190357,12.07,158.94,158.84,14.77]
[1727655190554,21.5607,158.96,158.84,1.3271]
[1727655190857,3.1462,158.88,158.81,1.46512]
[1727655191154,3.1462,158.88,158.84,3.1468]
[1727655191853,3.1462,158.88,158.81,1.46512]
[1727655192154,3.17047894,158.9,158.81,1.46512]
[1727655192354,3.146,158.9,158.81,1.46512]
[1727655192556,3.08299575,158.89,158.84,3.147]
[1727655192755,12.07,158.91,158.81,1.46512]
[1727655192756,3.1462,158.88,158.81,0.12502]
[1727655193147,3.1462,158.88,158.83,3.147]
[1727655193348,3.1462,158.88,158.81,0.12502]
[1727655193349,3.08100604,158.88,158.81,0.12502]
[1727655193547,3.1467,158.86,158.81,0.12502]
[1727655194361,3.1467,158.86,158.82,3.1473]
[1727655195355,3.1468,158.85,158.81,3.27262]
[1727655196354,3.11634876,158.86,158.81,0.12502]
[1727655196556,12.07,158.83,158.64,238.4524]
[1727655196768,12.07,158.83,158.7,12.07]
[1727655197065,12.07,158.8,158.7,12.07]
[1727655198862,3.1482,158.78,158.74,3.1489]
[1727655200562,6.32869133,158.78,158.74,3.1489]
[1727655200861,3.1484,158.77,158.68,16.021]
[1727655201365,12.07,158.81,158.7,12.07]
[1727655201558,12.07,158.79,158.68,16.021]
[1727655201755,12.07,158.77,158.71,3.1495]
[1727655201962,15.21426347,158.77,158.68,1.3442]
[1727655202157,3.1491,158.74,158.68,1.3442]
[1727655202356,12.07,158.75,158.69,3.27492]
[1727655202761,15.21714534,158.75,158.69,0.12502]
[1727655203267,12.07,158.72,158.69,0.12502]
[1727655204059,15.28017018,158.72,158.69,0.12502]
[1727655205364,3.1496,158.71,158.69,0.12502]
[1727655206868,15.28017018,158.72,158.69,0.12502]
[1727655207063,3.1492,158.73,158.69,3.27492]
[1727655208176,3.149,158.74,158.7,3.1498]
[1727655208367,68.04,158.77,158.69,12.19502]
[1727655208571,68.04,158.77,158.71,12.07]
[1727655209061,68.04,158.77,158.7,1.2929]
[1727655209462,3.1486,158.76,158.72,3.1492]
[1727655210268,3.1488,158.75,158.71,3.1495]
[1727655211669,3.1488,158.75,158.69,0.12502]
[1727655211972,3.1488,158.75,158.72,3.1494]
[1727655212369,80.11,158.77,158.7,3.1497]
[1727655212565,1.2567,158.76,158.69,0.12502]
[1727655212977,3.149,158.74,158.7,3.1496]
[1727655217174,12.07,158.75,158.69,0.12502]
[1727655217361,3.1494,158.72,158.69,0.12502]
[1727655217564,1.2567,158.76,158.69,0.12502]
[1727655217565,12.07,158.73,158.69,0.12502]
[1727655217769,12.07,158.7,158.69,0.12502]
[1727655217973,15.2198,158.7,158.69,0.12502]
[1727655218581,18.31506984,158.7,158.69,0.12502]
[1727655219082,15.2198,158.7,158.69,0.12502]
[1727655220873,18.41608349,158.7,158.69,0.12502]
[1727655221678,3.1496,158.71,158.69,0.12502]
[1727655222068,1.2567,158.76,158.69,0.12502]
[1727655222270,3.1488,158.75,158.71,3.1494]
[1727655222476,1.2567,158.76,158.71,3.1494]
[1727655222477,13.3267,158.76,158.71,3.1494]
[1727655222669,13.3267,158.76,158.69,0.12502]
[1727655222869,13.3267,158.76,158.69,3.27492]
[1727655222870,3.1492,158.73,158.69,3.27492]
[1727655223172,12.07,158.74,158.69,3.27492]
[1727655223485,12.07,158.74,158.69,0.12502]
[1727655223486,3.1495,158.72,158.69,0.12502]
[1727655224272,13.3267,158.76,158.7,3.1497]
[1727655224984,3.1491,158.74,158.7,3.1497]
[1727655225369,13.3267,158.76,158.7,3.1497]
[1727655225975,3.1495,158.72,158.69,0.12502]
[1727655226480,13.3267,158.76,158.69,0.12502]
[1727655226988,15.18362335,158.78,158.69,0.12502]
[1727655227189,3.1486,158.76,158.73,3.1491]
[1727655227376,3.1486,158.76,158.69,0.12502]
[1727655227778,3.1486,158.76,158.72,3.1493]
[1727655227982,3.1486,158.76,158.69,0.12502]
[1727655229079,18.37050391,158.78,158.69,0.12502]
[1727655229284,1.3207,158.79,158.72,12.07]
[1727655229596,4.4687,158.79,158.75,3.1486]
[1727655229782,1.3207,158.79,158.75,3.1486]
[1727655230692,3.148,158.79,158.75,3.1486]
[1727655230992,160.31670463,158.8,158.75,3.1486]
[1727655231687,3.1486,158.76,158.69,12.19502]
[1727655232080,3.1486,158.76,158.72,3.1492]
[1727655232277,3.1488,158.75,158.72,3.1492]
[1727655232581,12.07,158.79,158.72,3.1492]
[1727655232984,3.1486,158.77,158.73,3.1491]
[1727655233190,3.11496268,158.76,158.73,3.1491]
[1727655233392,12.07,158.79,158.73,3.1491]
[1727655234191,3.18963105,158.78,158.74,3.149]
[1727655234387,160.31670463,158.8,158.72,12.07]
[1727655234597,163.46460463,158.8,158.76,3.1484]
[1727655235282,3.148,158.79,158.76,3.1484]
[1727655239292,3.1482,158.78,158.74,3.1488]
[1727655240195,3.1482,158.78,158.72,12.07]
[1727655240495,3.1482,158.78,158.75,3.1487]
[1727655241086,3.22207462,158.78,158.69,12.19502]
[1727655241284,12.07,158.75,158.69,0.12502]
[1727655241488,15.20028267,158.75,158.69,0.12502]
[1727655241693,3.1494,158.72,158.69,3.27492]
[1727655242000,15.2194,158.72,158.69,3.27492]
[1727655242694,15.2194,158.72,158.69,0.12502]
[1727655243287,15.2194,158.72,158.69,3.27502]
[1727655243491,3.1497,158.71,158.69,0.12502]
[1727655245592,3.13028267,158.75,158.7,3.1497]
[1727655245792,15.2811,158.76,158.7,3.1497]
[1727655246300,3.1491,158.74,158.7,3.1497]
[1727655247200,18.50250262,158.76,158.7,3.1497]
[1727655247504,3.1492,158.73,158.7,3.1497]
[1727655253302,3.1496,158.71,158.69,0.12502]
[1727655254304,3.1498,158.7,158.69,0.12502]
[1727655254501,12.07,158.71,158.69,0.12502]
[1727655255298,3.1498,158.7,158.69,0.12502]
[1727655256209,12.07,158.71,158.64,3.1509]
[1727655256504,3.1503,158.68,158.64,3.1509]
[1727655256800,3.22928907,158.68,158.64,3.1509]
[1727655257007,3.22928907,158.68,158.63,0.12502]
[1727655257008,12.07,158.71,158.63,0.12502]
[1727655257406,3.15,158.69,158.65,3.1507]
[1727655260314,6.31882723,158.68,158.65,3.1507]
[1727655261810,6.31882723,158.68,158.64,3.1508]
[1727655262113,3.1504,158.67,158.64,3.1508]
[1727655262512,6.22591501,158.67,158.64,3.1508]
[1727655263111,3.1502,158.68,158.65,3.1507]
[1727655263510,6.309885,158.68,158.65,3.1507]
[1727655264309,3.159685,158.68,158.65,3.1507]
[1727655266310,12.07,158.69,158.63,0.12502]
[1727655266517,3.1504,158.67,158.64,3.1509]
[1727655266719,3.1504,158.67,158.63,0.12502]
[1727655266720,3.10432162,158.66,158.63,0.12502]
[1727655266925,12.07,158.67,158.63,0.12502]
[1727655267115,3.1509,158.65,158.63,0.12502]
[1727655267417,3.22913062,158.64,158.63,0.12502]
[1727655267619,6.38013062,158.64,158.63,0.12502]
[1727655267813,3.151,158.64,158.63,0.12502]
[1727655268324,6.2697815,158.64,158.63,0.12502]
[1727655268545,6.2697815,158.64,158.57,1.49822]
[1727655268546,3.1187815,158.64,158.57,1.49822]
[1727655268818,15.2214,158.62,158.57,1.49822]
[1727655269604,18.42688438,158.62,158.57,1.49822]
[1727655270522,15.27548438,158.62,158.57,1.49822]
[1727655270714,12.07,158.62,158.57,1.49822]
[1727655272107,15.2214,158.62,158.57,1.49822]
[1727655272505,15.2214,158.62,158.57,0.12502]
[1727655272710,12.07,158.62,158.58,3.1521]
[1727655272915,3.1516,158.61,158.58,3.1521]
[1727655273219,12.07,158.6,158.57,0.12502]
[1727655273523,15.2219,158.6,158.57,0.12502]
[1727655274315,12.07,158.6,158.57,3.27732]
[1727655274628,3.12764997,158.59,158.57,3.27732]
[1727655275910,12.07,158.62,158.57,0.12502]
[1727655276119,3.13143457,158.62,158.59,3.1519]
[1727655276314,68.1,158.66,158.57,0.12502]
[1727655276513,71.20494242,158.66,158.57,0.12502]
[1727655276714,71.20494242,158.66,158.61,3.1514]
[1727655277215,12.07,158.65,158.61,3.1514]
[1727655277411,3.151,158.64,158.6,3.1517]
[1727655278720,12.07,158.65,158.57,0.12502]
[1727655279019,12.07,158.65,158.59,3.1518]
[1727655279426,3.1513,158.63,158.6,3.1517]
[1727655279927,12.07,158.65,158.6,3.1517]
[1727655280122,12.07,158.65,158.57,0.12502]
[1727655280321,71.20494242,158.66,158.57,12.19502]
[1727655280525,3.10494242,158.66,158.58,1.2665]
[1727655280825,12.07,158.67,158.58,1.2665]
[1727655281331,3.1509,158.65,158.58,1.2665]
[1727655283130,3.1509,158.65,158.61,3.1514]
[1727655289127,15.2222839,158.67,158.58,1.2665]
[1727655289329,3.1506,158.66,158.58,1.2665]
[1727655289535,3.1506,158.66,158.61,7.75]
[1727655289536,7.75,158.66,158.61,7.75]
[1727655291119,7.75,158.66,158.62,3.1512]
[1727655291328,7.75,158.66,158.61,7.75]
[1727655291530,3.1522839,158.67,158.62,7.75]
[1727655291723,3.1522839,158.67,158.65,3.1506]
[1727655297236,7.87502,158.69,158.67,3.1503]
[1727655297431,7.87502,158.69,158.64,7.75]
[1727655297931,7.75,158.68,158.63,7.75]
[1727655298541,7.75,158.68,158.66,3.1505]
[1727655299236,0.12502,158.69,158.68,3.1502]
[1727655299941,7.87502,158.69,158.6,1.2483]
[1727655300137,7.75,158.67,158.62,7.75]
[1727655300328,7.75,158.66,158.6,1.2483]
[1727655300532,7.75,158.64,158.6,1.2483]
[1727655300737,7.75,158.64,158.58,1.2665]
[1727655300738,7.75,158.61,158.58,1.2665]
[1727655300941,7.75,158.61,158.56,7.75]
[1727655301242,7.75,158.61,158.54,1.35]
[1727655301537,7.75,158.61,158.56,7.75]
[1727655301740,1.31,158.66,158.58,7.75]
[1727655301925,3.1507,158.66,158.62,3.1512]
[1727655302125,7.75,158.68,158.64,7.75]
[1727655302838,7.75,158.68,158.58,5.82650503]
[1727655302839,10.9002,158.68,158.62,7.75]
[1727655303228,10.9004,158.67,158.64,3.1508]
[1727655303430,0.12502,158.69,158.64,7.75]
[1727655303639,0.12502,158.69,158.63,12.11]
[1727655304143,0.12502,158.69,158.67,3.1503]
[1727655305537,0.12502,158.69,158.58,5.798938]
[1727655305538,0.12502,158.69,158.68,3.1502]
[1727655309742,0.12502,158.69,158.67,3.1503]
[1727655310344,0.12502,158.69,158.68,3.1502]
[1727655313036,1.41592,158.75,158.67,12.11]
[1727655313245,0.12502,158.75,158.71,12.11]
[1727655313746,3.27382,158.75,158.69,12.11]
[1727655314449,3.1492,158.73,158.69,12.11]